[Event "NJSK 2022 Jeugd C"]
[Site "Almelo, Netherlands"]
[Date "2022.05.07"]
[Round "9.12"]
[White "Agarwal, Pranav"]
[Black "Bosma, Jonathan"]
[Result "1-0"]
[TimeControl "90min + 30sec/move"]
[WhiteElo "1531"]
[BlackElo "884"]

1. e4 {[%clk 01:30:57]} {[%emt 00:00:02]} c5 {[%clk 01:30:56]} {[%emt
00:00:05]} 2. Nf3 {[%clk 01:31:22]} {[%emt 00:00:05]} d6 {[%clk 01:31:16]}
{[%emt 00:00:09]} 3. d4 {[%clk 01:31:47]} {[%emt 00:00:05]} cxd4 {[%clk
01:31:39]} {[%emt 00:00:07]} 4. Nxd4 {[%clk 01:32:14]} {[%emt 00:00:03]} Nf6
{[%clk 01:32:02]} {[%emt 00:00:07]} 5. Nc3 {[%clk 01:32:39]} {[%emt 00:00:05]}
g6 {[%clk 01:31:48]} {[%emt 00:00:44]} 6. Bb5+ {[%clk 01:32:42]} {[%emt
00:00:28]} Bd7 {[%clk 01:31:36]} {[%emt 00:00:42]} 7. f4 {[%clk 01:31:55]}
{[%emt 00:01:17]} e5 {[%clk 01:30:05]} {[%emt 00:02:00]} 8. Bxd7+ {[%clk
01:30:43]} {[%emt 00:01:43]} Nbxd7 {[%clk 01:29:52]} {[%emt 00:00:43]} 9. Ndb5
{[%clk 01:30:35]} {[%emt 00:00:37]} a6 {[%clk 01:29:33]} {[%emt 00:00:49]} 10.
Nxd6+ {[%clk 01:30:38]} {[%emt 00:00:26]} Bxd6 {[%clk 01:29:10]} {[%emt
00:00:55]} 11. Qxd6 {[%clk 01:30:57]} {[%emt 00:00:10]} Ng4 {[%clk 01:26:30]}
{[%emt 00:03:11]} 12. Nd5 {[%clk 01:27:42]} {[%emt 00:03:45]} Rc8 {[%clk
01:23:40]} {[%emt 00:03:18]} 13. O-O {[%clk 01:26:15]} {[%emt 00:01:56]} Rc6
{[%clk 01:23:10]} {[%emt 00:01:02]} 14. Qb4 {[%clk 01:23:02]} {[%emt 00:03:44]}
Nc5 {[%clk 01:21:09]} {[%emt 00:02:30]} 15. fxe5 {[%clk 01:21:59]} {[%emt
00:01:33]} Nxe5 {[%clk 01:20:36]} {[%emt 00:01:02]} 16. Qd4 {[%clk 01:20:44]}
{[%emt 00:01:47]} Ncd7 {[%clk 01:18:55]} {[%emt 00:02:11]} 17. Bf4 {[%clk
01:19:10]} {[%emt 00:02:02]} Qb8 {[%clk 01:18:40]} {[%emt 00:00:46]} 18. Nb4
{[%clk 01:17:13]} {[%emt 00:02:27]} Re6 {[%clk 01:16:46]} {[%emt 00:02:24]} 19.
Nd3 {[%clk 01:10:04]} {[%emt 00:07:39]} O-O {[%clk 01:15:46]} {[%emt 00:01:31]}
20. Bh6 {[%clk 01:08:53]} {[%emt 00:01:41]} Rd8 {[%clk 01:15:40]} {[%emt
00:00:33]} 21. Nxe5 {[%clk 01:06:28]} {[%emt 00:02:57]} Qxe5 {[%clk 01:13:42]}
{[%emt 00:02:29]} 22. Rad1 {[%clk 01:05:55]} {[%emt 00:01:01]} g5 {[%clk
01:12:08]} {[%emt 00:02:05]} 23. Qxe5 {[%clk 01:05:46]} {[%emt 00:00:37]} Rxe5
{[%clk 01:12:14]} {[%emt 00:00:26]} 24. Rf5 {[%clk 01:05:36]} {[%emt 00:00:41]}
Rxf5 {[%clk 01:11:48]} {[%emt 00:00:55]} 25. exf5 {[%clk 01:06:02]} {[%emt
00:00:05]} f6 {[%clk 01:12:01]} {[%emt 00:00:17]} 26. h4 {[%clk 01:06:20]}
{[%emt 00:00:11]} gxh4 {[%clk 01:11:56]} {[%emt 00:00:35]} 27. Be3 {[%clk
01:06:24]} {[%emt 00:00:26]} Re8 {[%clk 01:11:13]} {[%emt 00:01:14]} 28. Bf2
{[%clk 01:06:24]} {[%emt 00:00:29]} Ne5 {[%clk 01:11:08]} {[%emt 00:00:35]} 29.
Bxh4 {[%clk 01:06:01]} {[%emt 00:00:52]} Ng4 {[%clk 01:11:14]} {[%emt
00:00:25]} 30. Rd4 {[%clk 01:04:59]} {[%emt 00:01:32]} h5 {[%clk 01:10:28]}
{[%emt 00:01:16]} 31. Bf2 {[%clk 01:02:09]} {[%emt 00:03:20]} Re5 {[%clk
01:09:17]} {[%emt 00:01:42]} 32. Bg3 {[%clk 01:01:37]} {[%emt 00:01:02]} Re3
{[%clk 01:07:01]} {[%emt 00:02:46]} 33. Bh4 {[%clk 00:58:34]} {[%emt 00:03:32]}
Re2 {[%clk 01:05:19]} {[%emt 00:02:12]} 34. Kf1 {[%clk 00:57:25]} {[%emt
00:01:40]} Rxc2 {[%clk 01:04:58]} {[%emt 00:00:50]} 35. Rd8+ {[%clk 00:57:25]}
{[%emt 00:00:30]} Kf7 {[%clk 01:05:12]} {[%emt 00:00:16]} 36. Rd7+ {[%clk
00:57:30]} {[%emt 00:00:25]} Ke8 {[%clk 01:05:40]} {[%emt 00:00:02]} 37. Rxb7
{[%clk 00:57:51]} {[%emt 00:00:09]} Rc1+ {[%clk 01:05:56]} {[%emt 00:00:15]} 38.
Ke2 {[%clk 00:57:55]} {[%emt 00:00:25]} Rc2+ {[%clk 01:06:02]} {[%emt
00:00:25]} 39. Kf3 {[%clk 00:57:16]} {[%emt 00:01:08]} Ne5+ {[%clk 01:02:25]}
{[%emt 00:04:08]} 40. Kg3 {[%clk 00:56:33]} {[%emt 00:01:12]} Nd7 {[%clk
01:02:27]} {[%emt 00:00:28]} 41. Rxd7 {[%clk 00:56:12]} {[%emt 00:00:51]} Kxd7
{[%clk 01:02:52]} {[%emt 00:00:05]} 42. Bxf6 {[%clk 00:56:37]} {[%emt
00:00:05]} Rc4 {[%clk 01:02:11]} {[%emt 00:01:11]} 43. Bc3 {[%clk 00:56:43]}
{[%emt 00:00:24]} Rg4+ {[%clk 01:01:09]} {[%emt 00:01:32]} 44. Kf3 {[%clk
00:57:06]} {[%emt 00:00:07]} Ke7 {[%clk 01:01:12]} {[%emt 00:00:26]} 45. g3
{[%clk 00:57:17]} {[%emt 00:00:19]} Kd6 {[%clk 01:00:03]} {[%emt 00:01:40]} 46.
a3 {[%clk 00:56:47]} {[%emt 00:01:00]} Kd5 {[%clk 00:59:46]} {[%emt 00:00:46]}
47. Kf2 {[%clk 00:54:52]} {[%emt 00:02:26]} Kd6 {[%clk 00:59:35]} {[%emt
00:00:41]} 48. Kg2 {[%clk 00:54:45]} {[%emt 00:00:36]} Kd5 {[%clk 00:59:27]}
{[%emt 00:00:39]} 49. Kh3 {[%clk 00:54:47]} {[%emt 00:00:28]} Kd6 {[%clk
00:59:19]} {[%emt 00:00:38]} 50. Kg2 {[%clk 00:52:47]} {[%emt 00:02:29]} Kd5
{[%clk 00:58:31]} {[%emt 00:01:18]} 51. Kf3 {[%clk 00:53:12]} {[%emt 00:00:06]}
Kd6 {[%clk 00:58:49]} {[%emt 00:00:12]} 52. Bd2 {[%clk 00:53:39]} {[%emt
00:00:03]} Kd5 {[%clk 00:58:28]} {[%emt 00:00:50]} 53. Bf4 {[%clk 00:53:44]}
{[%emt 00:00:25]} a5 {[%clk 00:57:14]} {[%emt 00:01:45]} 54. b4 {[%clk
00:53:22]} {[%emt 00:00:52]} a4 {[%clk 00:56:53]} {[%emt 00:00:51]} 55. b5
{[%clk 00:52:38]} {[%emt 00:01:14]} Rg7 {[%clk 00:55:38]} {[%emt 00:01:43]} 56.
b6 {[%clk 00:52:43]} {[%emt 00:00:27]} Rf7 {[%clk 00:55:10]} {[%emt 00:00:57]}
57. g4 {[%clk 00:51:44]} {[%emt 00:01:28]} hxg4+ {[%clk 00:54:58]} {[%emt
00:00:42]} 58. Kxg4 {[%clk 00:52:08]} {[%emt 00:00:07]} Kc6 {[%clk 00:54:17]}
{[%emt 00:01:12]} 59. Bc7 {[%clk 00:50:09]} {[%emt 00:02:29]} Rg7+ {[%clk
00:54:17]} {[%emt 00:00:30]} 60. Kf4 {[%clk 00:50:07]} {[%emt 00:00:31]} Rh7
{[%clk 00:54:13]} {[%emt 00:00:35]} 61. f6 {[%clk 00:49:51]} {[%emt 00:00:46]}
Rh2 {[%clk 00:54:24]} {[%emt 00:00:18]} 62. Kf5 {[%clk 00:50:00]} {[%emt
00:00:21]} Rh3 {[%clk 00:54:32]} {[%emt 00:00:22]} 63. f7 {[%clk 00:50:11]}
{[%emt 00:00:19]} Rf3+ {[%clk 00:54:23]} {[%emt 00:00:39]} 64. Bf4 {[%clk
00:50:23]} {[%emt 00:00:19]} Rxa3 {[%clk 00:53:59]} {[%emt 00:00:53]} 65. f8=Q
{[%clk 00:50:38]} {[%emt 00:00:15]} Rb3 {[%clk 00:53:54]} {[%emt 00:00:11]} 66.
Qa8+ {[%clk 00:50:54]} {[%emt 00:00:38]} Kxb6 {[%clk 00:53:46]} {[%emt
00:00:38]} 67. Qxa4 {[%clk 00:51:16]} {[%emt 00:00:09]} Rb5+ {[%clk 00:53:50]}
{[%emt 00:00:26]} 68. Ke4 {[%clk 00:51:20]} {[%emt 00:00:25]} Kc5 {[%clk
00:53:56]} {[%emt 00:00:25]} 69. Be3+ {[%clk 00:51:12]} {[%emt 00:00:37]} Kc6
{[%clk 00:53:38]} {[%emt 00:00:48]} 70. Qa6+ {[%clk 00:51:13]} {[%emt
00:00:29]} Kc7 {[%clk 00:53:12]} {[%emt 00:00:56]} 71. Bf4+ {[%clk 00:51:23]}
{[%emt 00:00:19]} Kd7 {[%clk 00:52:47]} {[%emt 00:00:56]} 72. Qxb5+ {[%clk
00:51:18]} {[%emt 00:00:35]} Ke7 {[%clk 00:53:01]} {[%emt 00:00:15]} 73. Bg5+
{[%clk 00:51:34]} {[%emt 00:00:14]} Kf7 {[%clk 00:53:19]} {[%emt 00:00:13]} 74.
Qf5+ {[%clk 00:51:57]} {[%emt 00:00:07]} Kg8 {[%clk 00:53:27]} {[%emt
00:00:21]} 75. Bf6 {[%clk 00:51:22]} {[%emt 00:01:05]} Kf8 {[%clk 00:53:21]}
{[%emt 00:00:36]} 76. Qh7 {[%clk 00:51:38]} {[%emt 00:00:13]} 1-0

[Event "NJSK 2022 Jeugd C"]
[Site "Almelo, Netherlands"]
[Date "2022.05.07"]
[Round "10.1"]
[White "Kumar, Prajit Sai"]
[Black "Van Batenburg, Mees"]
[Result "1/2-1/2"]
[TimeControl "5 min + 3 sec/move"]


[WhiteElo "2042"]
[BlackElo "1713"]

1. d4 {[%clk 00:05:05]} f5 {[%clk 00:05:06]} 2. Bf4 {[%clk 00:05:07]} {[%emt
00:00:02]} e6 {[%clk 00:05:04]} {[%emt 00:00:05]} 3. e3 {[%clk 00:05:08]}
{[%emt 00:00:01]} Nf6 {[%clk 00:05:06]} {[%emt 00:00:01]} 4. Be2 {[%clk
00:05:10]} Bd6 {[%clk 00:04:53]} {[%emt 00:00:15]} 5. Bxd6 {[%clk 00:05:07]}
{[%emt 00:00:06]} cxd6 {[%clk 00:04:56]} 6. c4 {[%clk 00:05:01]} {[%emt
00:00:10]} b6 {[%clk 00:04:49]} {[%emt 00:00:09]} 7. Bf3 {[%clk 00:04:57]}
{[%emt 00:00:07]} d5 {[%clk 00:04:52]} {[%emt 00:00:01]} 8. Nc3 {[%clk
00:04:58]} {[%emt 00:00:01]} Bb7 {[%clk 00:04:54]} {[%emt 00:00:02]} 9. cxd5
{[%clk 00:04:52]} {[%emt 00:00:08]} Nxd5 {[%clk 00:04:55]} {[%emt 00:00:02]} 10.
Nxd5 {[%clk 00:04:52]} {[%emt 00:00:03]} Bxd5 {[%clk 00:04:57]} 11. Bxd5 {[%clk
00:04:52]} {[%emt 00:00:03]} exd5 {[%clk 00:04:59]} 12. Qf3 {[%clk 00:04:47]}
{[%emt 00:00:08]} Nc6 {[%clk 00:03:48]} {[%emt 00:01:14]} 13. Qxd5 {[%clk
00:04:35]} {[%emt 00:00:15]} Qe7 {[%clk 00:03:40]} {[%emt 00:00:10]} 14. a3
{[%clk 00:04:18]} {[%emt 00:00:21]} Qe6 {[%clk 00:03:11]} {[%emt 00:00:32]} 15.
Qxe6+ {[%clk 00:04:16]} {[%emt 00:00:05]} dxe6 {[%clk 00:03:14]} {[%emt
00:00:01]} 16. Nf3 {[%clk 00:04:11]} {[%emt 00:00:07]} O-O {[%clk 00:03:12]}
{[%emt 00:00:04]} 17. Rc1 {[%clk 00:03:59]} {[%emt 00:00:16]} Rac8 {[%clk
00:03:15]} 18. b4 {[%clk 00:03:28]} {[%emt 00:00:34]} Nxd4 {[%clk 00:03:07]}
{[%emt 00:00:11]} 19. Rxc8 {[%clk 00:03:25]} {[%emt 00:00:06]} Nxf3+ {[%clk
00:03:07]} {[%emt 00:00:02]} 20. gxf3 {[%clk 00:03:27]} {[%emt 00:00:01]} Rxc8
{[%clk 00:03:09]} 21. Kd2 {[%clk 00:03:26]} {[%emt 00:00:04]} Kf7 {[%clk
00:03:11]} 22. Rg1 {[%clk 00:03:20]} {[%emt 00:00:09]} g6 {[%clk 00:03:13]}
{[%emt 00:00:02]} 23. h4 {[%clk 00:03:22]} {[%emt 00:00:01]} Rc4 {[%clk
00:03:12]} {[%emt 00:00:04]} 24. Rh1 {[%clk 00:03:17]} {[%emt 00:00:08]} h5
{[%clk 00:03:13]} {[%emt 00:00:02]} 25. Kd3 {[%clk 00:03:18]} {[%emt 00:00:01]}
Rc7 {[%clk 00:03:13]} {[%emt 00:00:03]} 26. f4 {[%clk 00:03:13]} {[%emt
00:00:09]} Kf6 {[%clk 00:03:12]} {[%emt 00:00:04]} 27. Rg1 {[%clk 00:03:15]}
{[%emt 00:00:01]} Rd7+ {[%clk 00:03:12]} {[%emt 00:00:04]} 28. Kc3 {[%clk
00:03:14]} {[%emt 00:00:03]} Rc7+ {[%clk 00:03:12]} {[%emt 00:00:03]} 29. Kb3
{[%clk 00:03:13]} {[%emt 00:00:04]} Rd7 30. Kc3 {[%clk 00:02:49]} {[%emt
00:00:27]} Rc7+ {[%clk 00:03:17]} 1/2-1/2

[Event "NJSK 2022 Jeugd C"]
[Site "Almelo, Netherlands"]
[Date "2022.05.07"]
[Round "11.1"]
[White "Van Batenburg, Mees"]
[Black "Kumar, Prajit Sai"]
[Result "1-0"]
[TimeControl "5 min + 3 sec/move"]

[WhiteElo "1713"]
[BlackElo "2042"]

1. d4 {[%clk 00:05:05]} {[%emt 00:00:01]} d5 {[%clk 00:05:05]} 2. Nc3 {[%clk
00:05:08]} Nf6 {[%clk 00:05:07]} 3. Bf4 {[%clk 00:05:10]} a6 {[%clk 00:05:10]}
{[%emt 00:00:01]} 4. e3 {[%clk 00:05:12]} Bf5 {[%clk 00:05:11]} {[%emt
00:00:01]} 5. f3 {[%clk 00:05:15]} e6 {[%clk 00:05:12]} {[%emt 00:00:03]} 6. g4
{[%clk 00:05:17]} Bg6 {[%clk 00:05:14]} {[%emt 00:00:01]} 7. h4 {[%clk
00:05:20]} h5 {[%clk 00:05:16]} 8. g5 {[%clk 00:05:22]} Nfd7 {[%clk 00:05:18]}
9. Bd3 {[%clk 00:05:24]} Bxd3 {[%clk 00:05:20]} {[%emt 00:00:02]} 10. Qxd3
{[%clk 00:05:25]} {[%emt 00:00:02]} c5 {[%clk 00:05:22]} {[%emt 00:00:01]} 11.
g6 {[%clk 00:05:24]} {[%emt 00:00:03]} f6 {[%clk 00:05:23]} {[%emt 00:00:02]}
12. O-O-O {[%clk 00:05:26]} {[%emt 00:00:01]} Nc6 {[%clk 00:05:25]} {[%emt
00:00:02]} 13. Nge2 {[%clk 00:05:25]} {[%emt 00:00:03]} Nb6 {[%clk 00:05:28]}
14. e4 {[%clk 00:05:27]} dxe4 {[%clk 00:05:00]} {[%emt 00:00:31]} 15. Qxe4
{[%clk 00:05:12]} {[%emt 00:00:18]} cxd4 {[%clk 00:04:29]} {[%emt 00:00:34]} 16.
Nxd4 {[%clk 00:04:45]} {[%emt 00:00:31]} Nxd4 {[%clk 00:04:07]} {[%emt
00:00:25]} 17. Rxd4 {[%clk 00:04:44]} {[%emt 00:00:03]} Qc8 {[%clk 00:03:59]}
{[%emt 00:00:11]} 18. Re1 {[%clk 00:04:33]} {[%emt 00:00:15]} e5 {[%clk
00:04:01]} {[%emt 00:00:02]} 19. Bxe5 {[%clk 00:04:31]} 1-0